fUST/lending_fUST_20250823
["ID","MTS","AMOUNT","RATE_DAILY","PERIOD"]
[380920579,1755900637939,-198.62478898,0.00021473,2]
[380920581,1755900637949,-794.21600215,0.00021627,2]
[380920583,1755900637964,-3905.57612271,0.00021627,2]
[380920585,1755900637974,-153.1,0.000218,2]
[380920587,1755900637984,-500.0,0.00021873,2]
[380920589,1755900637993,-500.0,0.00022,2]
[380920591,1755900638005,-216.33430074,0.00022653,2]
[380920593,1755900638014,-903.03673489,0.0002278,2]
[380920595,1755900638024,-36747.4827447,0.00022959,2]
[380920597,1755900638034,-400.0,0.00023,2]
[380920599,1755900638043,-420.0,0.00023317,2]
[380920601,1755900638052,-4699.79212486,0.00023353,2]
[380920604,1755900638064,-199.0,0.00023697,2]
[380920606,1755900638073,-500.0,0.00023973,2]
[380920608,1755900638083,-500.0,0.00023973,2]
[380920610,1755900638092,-536.56572488,0.00023973,2]
[380920612,1755900638101,-500.0,0.00023973,2]
[380920614,1755900638111,-500.0,0.00023973,2]
[380920616,1755900638120,-500.0,0.00023973,2]
[380920618,1755900638130,-500.0,0.00023973,2]
[380920620,1755900638141,-500.18130527,0.00023973,2]
[380920622,1755900638151,-500.0,0.00023973,2]
[380920624,1755900638160,-500.0,0.00023973,2]
[380920626,1755900638169,-500.0,0.00023973,2]
[380920628,1755900638178,-500.0,0.00023973,2]
[380920630,1755900638188,-500.0,0.00023973,2]
[380920632,1755900638196,-502.34208597,0.00023973,2]
[380920634,1755900638206,-500.77531496,0.00023973,2]
[380920636,1755900638216,-633.9553656,0.00023973,2]
[380920638,1755900638225,-500.0,0.00023973,2]
[380920640,1755900638235,-500.0,0.00023973,2]
[380920642,1755900638244,-500.38608324,0.00023973,2]
[380920644,1755900638253,-500.80348526,0.00023973,2]
[380920646,1755900638263,-500.0,0.00023973,2]
[380920648,1755900638272,-507.67472078,0.00023973,2]
[380920650,1755900638282,-500.33825161,0.00023973,2]
[380920651,1755900638291,-555.18793954,0.00023973,2]
[380920654,1755900638300,-575.71454234,0.00023973,2]
[380920655,1755900638310,-500.0,0.00023973,2]
[380920657,1755900638319,-500.0,0.00023973,2]
[380920659,1755900638328,-500.0,0.00023973,2]
[380920661,1755900638338,-246.79,0.0002398,3]
[380920663,1755900638348,-740.42,0.0002398,3]
[380920665,1755900638357,-333.29348255,0.00023989,2]
[380920667,1755900638367,-910.50618918,0.0002399,2]
[380920669,1755900638376,-43120.44092419,0.0002399,2]
[380920671,1755900638385,-151.0,0.0002399,7]
[380920673,1755900638397,-151.985388,0.0002399,7]
[380920675,1755900638407,-229.788105,0.0002399,7]
[380920677,1755900638416,-151.0,0.0002399,7]
[380920679,1755900638426,-225.810266,0.0002399,7]
[380920681,1755900638435,-151.0,0.0002399,7]
[380920683,1755900638444,-151.0,0.0002399,7]
[380920685,1755900638454,-151.0,0.0002399,7]
[380920687,1755900638464,-151.0,0.0002399,7]
[380920689,1755900638473,-160.0,0.00024263,2]
[380920691,1755900638482,-197.0,0.00024325,2]
[380920693,1755900638492,-500.0,0.00024373,2]
[380920695,1755900638501,-500.90979466,0.00024373,2]
[380920697,1755900638511,-500.0,0.00024373,2]
[380920699,1755900638520,-500.0,0.00024373,2]
[380920701,1755900638529,-432.05615251,0.00024373,2]
[380920703,1755900638539,-500.0,0.00024373,2]
[380920705,1755900638548,-500.0,0.00024373,2]
[380920707,1755900638557,-204.74833604,0.00024373,2]
[380920709,1755900638567,-503.18202365,0.00024373,2]
[380920711,1755900638576,-500.0,0.00024373,2]
[380920713,1755900638586,-500.0,0.00024373,2]
[380920715,1755900638598,-157.33602433,0.00024373,2]
[380920717,1755900638607,-151.0,0.00024373,7]
[380920719,1755900638617,-151.0,0.00024373,7]
[380920721,1755900638626,-198.199068,0.00024373,7]
[380920723,1755900638635,-500.0,0.00024373,2]
[380920725,1755900638647,-151.0,0.00024373,7]
[380920727,1755900638656,-151.0,0.00024373,7]
[380920729,1755900638665,-151.0,0.00024373,2]
[380920731,1755900638675,-151.0,0.00024373,7]
[380920733,1755900638685,-36747.4827447,0.00024373,2]
[380920735,1755900638694,-800.0,0.00024394,2]
[380920737,1755900638703,-426.04559211,0.00024409,2]
[380920739,1755900638712,-1000.0,0.00024521,2]
[380920741,1755900638722,-1000.0,0.00024521,2]
[380920743,1755900638733,-500.0,0.00024521,2]
[380920745,1755900638743,-501.83718057,0.00024521,2]
[380920747,1755900638752,-207.45394953,0.00024521,2]
[380920749,1755900638762,-501.79923593,0.00024521,2]
[380920751,1755900638772,-501.18686614,0.00024521,2]
[380920753,1755900638781,-1000.0,0.00024521,2]
[380920755,1755900638791,-414.34126824,0.00024521,2]
[380920757,1755900638800,-197.0,0.0002463,2]
[380920759,1755900638809,-500.0,0.00024647,2]
[380920761,1755900638818,-151.89224758,0.00024647,2]
[380920763,1755900638827,-150.0,0.00024658,2]
[380920765,1755900638837,-500.0,0.00024658,2]
[380920767,1755900638846,-197.0,0.00024678,2]
[380920769,1755900638856,-400.0,0.0002479,2]
[380920771,1755900638865,-1320.25885873,0.000248,2]
[380920772,1755900638875,-5494.71897948,0.000248,2]
[380920773,1755900638885,-260.0,0.00024811,2]
[380920774,1755900638898,-197.0,0.00024894,2]
[380920775,1755900638907,-151.0,0.000249,7]
[380920776,1755900638916,-151.0,0.000249,7]
[380920777,1755900638925,-151.0,0.000249,7]
[380920778,1755900638935,-268103.477964,0.000249,2]
[380920779,1755900638945,-1013.23298153,0.000249,2]
[380920780,1755900639092,-1000.0,0.00024921,2]
[380920781,1755900639102,-841.2837129,0.00024921,2]
[380920782,1755900639112,-500.72788047,0.00024921,2]
[380920783,1755900639121,-1000.0,0.00024921,2]
[380920784,1755900639130,-500.0,0.00024921,2]
[380920785,1755900639143,-500.0,0.00024932,2]
[380920786,1755900639153,-168.0,0.00024933,2]
[380920787,1755900639162,-948.22366555,0.00024944,2]
[380920788,1755900639171,-44683.9129939,0.00024978,2]
[380920790,1755900639180,-151.0,0.0002498,7]
[380920791,1755900639190,-25747.55151099,0.00024998,2]
[380920792,1755900639199,-8883.64981783,0.00025,2]
[380920793,1755900639208,-5138.01815537,0.00025,7]
[380920795,1755900639218,-1771.15615259,0.00025,2]
[380920797,1755900639228,-5998.77294326,0.00025,2]
[380920799,1755900639238,-4780.0,0.00025,2]
[380920801,1755900639248,-165.82,0.00025,7]
[380920803,1755900639257,-500.0,0.00025068,2]
[380920805,1755900639267,-350.91085823,0.00025068,2]
[380920807,1755900639276,-1500.0,0.00025068,2]
[380920809,1755900639285,-4699.79212486,0.0002508,2]
[380920811,1755900639295,-168.0,0.00025111,2]
[380920812,1755900639304,-500.0,0.00025195,2]
[380920814,1755900639314,-250.0,0.00025205,2]
[380920816,1755900639323,-500.0,0.00025206,2]
[380920818,1755900639332,-168.0,0.00025299,2]
[380920820,1755900639342,-493.58,0.0002535,3]
[380920822,1755900639352,-360.0,0.00025359,2]
[380920824,1755900639362,-1000.0,0.00025468,2]
[380920826,1755900639371,-500.0,0.00025469,2]
[380920828,1755900639381,-500.0,0.0002548,2]
[380920830,1755900639393,-168.0,0.00025496,7]
[380920832,1755900639403,-168.0,0.00025506,2]
[380920834,1755900639412,-168.0,0.00025511,2]
[380920836,1755900639421,-1320.25885872,0.00025535,2]
[380920838,1755900639431,-500.0,0.00025545,2]
[380920840,1755900639440,-177.75684308,0.0002556,2]
[380920842,1755900639450,-500.0,0.0002556,2]
[380920844,1755900639460,-151.0,0.0002556,2]
[380920846,1755900639469,-300.0,0.0002556,2]
[380920848,1755900639479,-500.0,0.0002556,2]
[380920850,1755900639488,-151.0,0.0002556,2]
[380920852,1755900639498,-300.0,0.0002556,2]
[380920854,1755900639507,-500.0,0.0002556,2]
[380920857,1755900639517,-151.0,0.0002556,2]
[380920860,1755900639526,-300.0,0.0002556,2]
[380920862,1755900639536,-151.0,0.0002556,2]
[380920863,1755900639545,-500.0,0.0002556,2]
[380920865,1755900639554,-151.0,0.0002556,2]
[380920867,1755900639564,-151.0,0.0002556,2]
[380920869,1755900639573,-300.0,0.0002556,2]
[380920871,1755900639582,-500.0,0.0002556,2]
[380920873,1755900639593,-151.0,0.0002556,2]
[380920875,1755900639604,-151.0,0.0002556,2]
[380920877,1755900639614,-300.0,0.0002556,2]
[380920878,1755900639624,-300.90136408,0.0002556,2]
[380920879,1755900639634,-500.0,0.0002556,2]
[380920880,1755900639646,-151.0,0.0002556,2]
[380920881,1755900639656,-198.74159952,0.0002556,2]
[380920882,1755900639665,-500.0,0.0002556,2]
[380920883,1755900639677,-2030.296672,0.0002556,2]
[380920884,1755900639687,-151.0,0.0002556,2]
[380920885,1755900639696,-500.0,0.0002556,2]
[380920886,1755900639705,-151.0,0.0002556,2]
[380920887,1755900639714,-500.0,0.0002556,2]
[380920888,1755900639724,-151.0,0.0002556,2]
[380920889,1755900639733,-500.0,0.0002556,2]
[380920890,1755900639743,-500.0,0.0002556,2]
[380920891,1755900639752,-151.0,0.0002556,2]
[380920892,1755900639762,-526.46144033,0.0002556,2]
[380920893,1755900639771,-243.89168695,0.0002556,2]
[380920894,1755900639780,-250.0,0.0002556,2]
[380920895,1755900639789,-250.0,0.0002556,2]
[380920896,1755900639799,-250.0,0.0002556,2]
[380920897,1755900639809,-250.0,0.0002556,2]
[380920898,1755900639818,-250.0,0.0002556,2]
[380920899,1755900639827,-168.0,0.0002556,2]
[380920900,1755900639837,-168.0,0.00025598,7]
[380920901,1755900639847,-1347.28498773,0.00025615,2]
[380920902,1755900639856,-2000.0,0.00025616,2]
[380920903,1755900639866,-156.03,0.00025632,7]
[380920904,1755900639875,-295.0,0.00025664,7]
[380920905,1755900639885,-500.0,0.00025673,2]
[380920906,1755900639901,-168.0,0.00025715,2]
[380920907,1755900639911,-156.03,0.00025732,7]
[380920908,1755900639920,-586.0,0.00025743,2]
[380920909,1755900639931,-250.76361337,0.00025753,2]
[380920910,1755900639942,-500.0,0.00025754,2]
[380920911,1755900639952,-1500.0,0.00025777,28]
[380920912,1755900639962,-1500.0,0.00025777,28]
[380920913,1755900639972,-1500.0,0.00025777,28]
[380920914,1755900639982,-1500.0,0.00025777,28]
[380920915,1755900639992,-1500.0,0.00025777,28]
[380920916,1755900640001,-1500.0,0.00025777,28]
[380920917,1755900640011,-1500.0,0.00025777,28]
[380920918,1755900640020,-1500.0,0.00025777,28]
[380920919,1755900640030,-311.365124,0.00025777,28]
[380920920,1755900640040,-36747.4827447,0.00025787,2]
[380920921,1755900640051,-156.03,0.00025832,7]
[380920922,1755900640061,-460.0,0.00025907,2]
[380920923,1755900640070,-156.03,0.00025932,7]
[380920924,1755900640080,-216.99125601,0.00025932,7]
[380920925,1755900640091,-160.0,0.00025932,7]
[380920926,1755900640101,-232.32572668,0.00025932,7]
[380920927,1755900640110,-844.33851978,0.00025932,7]
[380920928,1755900640120,-376.07413479,0.00025932,7]
[380920929,1755900640129,-160.0,0.00025932,7]
[380920930,1755900640143,-528.9579881,0.00025932,7]
[380920931,1755900640154,-417.15472785,0.00025932,7]
[380920932,1755900640164,-500.0,0.00025952,2]
[380920933,1755900640174,-1762.46,0.00026,7]
[380920934,1755900640184,-1424.53,0.00026,7]
[380920935,1755900640194,-500.0,0.00026028,2]
[380920936,1755900640204,-730.65070826,0.00026082,2]
[380920937,1755900640213,-191.34480338,0.0002616,2]
[380920938,1755900640223,-2500.0,0.00026164,2]
[380920939,1755900640233,-500.0,0.00026178,2]
[380920940,1755900640242,-12692.97277622,0.00026195,2]
[380920941,1755900640252,-151.0,0.000262,13]
[380920942,1755900640261,-376.07413479,0.000262,2]
[380920943,1755900640271,-528.9579881,0.00026204,2]
[380920944,1755900640280,-215.90555669,0.00026204,2]
[380920945,1755900640290,-1320.25885872,0.0002627,2]
[380920946,1755900640300,-294.0,0.0002627,7]
[380920947,1755900640309,-500.0,0.00026302,2]
[380920948,1755900640319,-292.0,0.00026345,7]
[380920949,1755900640328,-420.0,0.00026455,2]
[380920950,1755900640338,-151.0,0.000265,20]
[380920951,1755900640348,-151.0,0.000266,14]
[380920952,1755900640358,-500.0,0.00026618,2]
[380920953,1755900640367,-458.812819,0.00026676,2]
[380920954,1755900640377,-3000.0,0.00026712,2]
[380920955,1755900640386,-165.82,0.000268,7]
[380920956,1755900640400,-27049.43,0.000269,2]
[380920957,1755900640410,-151.0,0.000269,16]
[380920958,1755900640420,-151.0,0.00026929,2]
[380920959,1755900640429,-156.03,0.00026941,7]
[380920960,1755900640439,-973.0,0.00026966,2]
[380920961,1755900640448,-2154.0,0.00026966,2]
[380920963,1755900640459,-639.856,0.00026966,2]
[380920965,1755900640469,-174.8116116,0.00027,2]
[380920967,1755900640478,-3000.0,0.00027,2]
[380920969,1755900640488,-151.0,0.00027,14]
[380920971,1755900640498,-11532.71331502,0.00027,7]
[380920973,1755900640508,-10961.17405955,0.00027001,5]
[380920975,1755900640517,-1320.25885872,0.00027005,2]
[380920977,1755900640527,-3000.0,0.0002701,2]
[380920979,1755900640536,-3000.0,0.0002702,2]
[380920980,1755900640545,-3000.0,0.0002703,2]
[380920981,1755900640555,-3000.0,0.0002704,2]
[380920982,1755900640564,-156.03,0.00027041,7]
[380920983,1755900640574,-3000.0,0.0002705,2]
[380920984,1755900640583,-3777.592376,0.0002706,2]
[380920985,1755900640594,-156.03,0.00027141,7]
[380920986,1755900640605,-500.0,0.00027154,2]
[380920987,1755900640615,-36747.4827447,0.00027201,2]
[380920988,1755900640625,-156.03,0.00027241,7]
[380920989,1755900640636,-1012.33437478,0.0002726,2]
[380920990,1755900640650,-151.0,0.000273,15]
[380920991,1755900640659,-151.0,0.000273,12]
[380920992,1755900640671,-156.03,0.00027341,7]
[380920993,1755900640681,-386.9439334,0.00027347,2]
[380920994,1755900640691,-386.9439334,0.00027347,2]
[380920995,1755900640700,-386.4516013,0.00027347,2]
[380920996,1755900640710,-151.2187,0.00027354,20]
[380920997,1755900640719,-151.2187,0.00027381,20]
[380920998,1755900640729,-500.0,0.00027397,5]
[380920999,1755900640738,-151.2187,0.00027408,20]
[380921000,1755900640748,-156.16649661,0.00027441,15]
[380921001,1755900640758,-151.0,0.000275,15]
[380921002,1755900640767,-168.0,0.00027681,2]
[380921003,1755900640776,-500.0,0.00027683,2]
[380921004,1755900640785,-22346.04881662,0.000277,2]
[380922227,1755900706537,4110.25851173,0.000199,2]
[380922236,1755900876993,4003.28206482,0.000199,2]
[380922238,1755901048310,3602.60635674,0.000199,2]
[380922239,1755901115808,191.65478537,0.0002,2]
[380922241,1755901220790,3482.51947795,0.000199,2]
[380922243,1755901328489,455.149396,0.00013699,2]
[380922244,1755901385408,3366.4354954,0.000199,2]
[380922667,1755901402606,3000.1,0.00027397,120]
[380923518,1755901554483,3254.22097879,0.000199,2]
[380923519,1755901690840,2059.22164767,0.00019205,5]
[380923520,1755901713882,2021.71441065,0.0002,2]
[380923521,1755901717548,3145.74694627,0.000199,2]
[380923522,1755901719496,211.6788199,0.00016,2]
[380923523,1755901719560,12435.66732073,0.0002,2]
[380923524,1755901722017,28943.32184044,0.0002,2]
[380923525,1755901722790,20605.67383459,0.00019,2]
[380923526,1755901723093,207.0,0.0002,10]
[380923553,1755901832252,-455.149396,0.00020187,2]
[380923554,1755901832262,-267.77271,0.00020978,2]
[380923556,1755901832271,-1133.0,0.00020999,2]
[380923558,1755901832280,-7836.93263051,0.00021,5]
[380923559,1755901832289,-300.0,0.00021626,2]
[380923562,1755901832298,-3145.74694616,0.00021627,2]
[380923565,1755901832307,-999.999999,0.00023,2]
[380923568,1755901832317,-420.0,0.00023509,2]
[380923572,1755901832326,-1000.0,0.00023972,2]
[380923574,1755901832335,-500.0,0.00023973,2]
[380923577,1755901832344,-20530.88501652,0.00024,60]
[380923579,1755901832353,-13168.54294748,0.00024,2]
[380923580,1755901832365,-404.02513977,0.00024,2]
[380923581,1755901832377,-2750.0,0.00024,2]
[380923582,1755901832388,-1167.35525968,0.00024,2]
[380923583,1755901832400,-1182.47955467,0.00024,2]
[380923585,1755901838163,-1434.3960418,0.000239,2]
[380923586,1755901838172,-15767.27957168,0.00024,2]
[380923587,1755901838182,-10000.0,0.00024556,2]
[380923588,1755901838192,-171.235471,0.00024556,2]
[380923589,1755901838202,-160.0,0.000246,2]
[380923590,1755901838212,-297.3429449,0.00024658,2]
[380923591,1755901838221,-2081.87378226,0.00024774,2]
[380923592,1755901838231,-609.18,0.00024988,10]
[380923593,1755901838241,-17764.16758062,0.00024998,2]
[380923594,1755901838252,-740.15936837,0.00024998,2]
[380923595,1755901838263,-3145.74694616,0.0002508,2]
[380923596,1755901838272,-260.0,0.00025148,2]
[380923597,1755901838282,-310.8305346,0.00025444,2]
[380923598,1755901838292,-587.0,0.00025556,2]
[380923599,1755901838302,-2030.296672,0.0002556,2]
[380923600,1755901838312,-1347.28498773,0.00025615,2]
[380923601,1755901838322,-156.03,0.00025629,7]
[380923602,1755901838332,-156.03,0.00025631,7]
[380923603,1755901838342,-156.03,0.0002564,7]
[380923604,1755901838352,-156.05,0.0002564,7]
[380923605,1755901838362,-500.0,0.00025695,2]
[380923606,1755901838372,-460.0,0.00025696,2]
[380923607,1755901838381,-156.03,0.00025729,7]
[380923608,1755901838391,-156.03,0.00025731,7]
[380923609,1755901838400,-156.03,0.0002574,7]
[380923610,1755901838409,-156.05,0.0002574,7]
[380923611,1755901838419,-500.0,0.00025756,2]
[380923612,1755901838429,-500.0,0.00025794,2]
[380923613,1755901838438,-156.03,0.00025829,7]
[380923614,1755901838448,-156.03,0.0002584,7]
[380923615,1755901838457,-156.05,0.0002584,7]
[380923616,1755901838467,-156.03,0.0002594,7]
[380923617,1755901838476,-156.05,0.0002594,7]
[380923618,1755901838488,-200.0,0.0002594,10]
[380923619,1755901838498,-200.0,0.0002594,10]
[380923620,1755901838507,-500.0,0.00025973,2]
[380923621,1755901838517,-501.85940276,0.00025973,2]
[380923622,1755901838526,-500.0,0.00025973,2]
[380923623,1755901838537,-500.0,0.00025973,2]
[380923624,1755901838546,-102.6665675,0.00025973,2]
[380923625,1755901838558,-397.3334325,0.00025973,2]
[380923626,1755901838568,-462.10436354,0.00025973,2]
[380923627,1755901838577,-500.0,0.00025999,2]
[380923628,1755901838587,-194.6204228,0.00025999,2]
[380923629,1755901838596,-500.0,0.00025999,2]
[380923630,1755901838606,-500.0,0.00025999,2]
[380923631,1755901838616,-500.0,0.00025999,2]
[380923632,1755901838626,-500.0,0.00025999,2]
[380923633,1755901838636,-500.0,0.00025999,2]
[380923634,1755901838646,-500.0,0.00025999,2]
[380923635,1755901838655,-80.64266781,0.00025999,2]
[380923636,1755901838668,-460.25243054,0.00025999,2]
[380923637,1755901838678,-500.0,0.00025999,2]
[380923638,1755901838687,-409.5216919,0.00025999,2]
[380923639,1755901838699,-173.97338813,0.00025999,2]
[380923640,1755901838708,-500.0,0.00025999,2]
[380923641,1755901838718,-500.0,0.00025999,2]
[380923642,1755901838727,-500.0,0.00025999,2]
[380923643,1755901838738,-567.4744279,0.00025999,2]
[380923644,1755901838748,-500.0,0.00025999,2]
[380923645,1755901838758,-500.0,0.00025999,2]
[380923646,1755901838767,-500.0,0.00025999,2]
[380923647,1755901838776,-500.0,0.00025999,2]
[380923648,1755901838786,-500.0,0.00025999,2]
[380923649,1755901838795,-7.30835228,0.00025999,2]
[380923650,1755901838807,-492.69164772,0.00025999,2]
[380923651,1755901838817,-500.0,0.00025999,2]
[380923652,1755901838826,-500.0,0.00025999,2]
[380923653,1755901838836,-331.59256068,0.00025999,2]
[380923654,1755901838852,-168.40743932,0.00025999,2]
[380923655,1755901838862,-500.0,0.00025999,2]
[380923656,1755901838871,-107.43708198,0.00025999,2]
[380923657,1755901838883,-392.56291802,0.00025999,2]
[380923658,1755901838893,-500.0,0.00025999,2]
[380923659,1755901838902,-500.0,0.00025999,2]
[380923660,1755901838911,-500.0,0.00025999,2]
[380923661,1755901838920,-500.0,0.00025999,2]
[380923662,1755901838930,-500.0,0.00025999,2]
[380923663,1755901838940,-1205.24441864,0.00026,30]
[380923664,1755901838952,-18250.71149107,0.00026,30]
[380923673,1755901840371,-2454.96186153,0.00026,30]
[380923674,1755901840383,-7898.2543207,0.00026,30]
[380923675,1755901840395,-9294.10169541,0.00026,30]
[380924959,1755901883906,2831.17225166,0.000199,2]
[380924960,1755901987842,-220.0,0.00020355,2]
[380924961,1755901987866,-199.0,0.00024888,10]
[380924962,1755901987894,-2831.17225154,0.0002508,2]
[380924963,1755901987918,-666.0,0.00025383,2]
[380924964,1755901987943,-500.0,0.00025987,2]
[380924965,1755901987966,-1756.13665691,0.00025997,7]
[380924966,1755901987993,-300.0,0.00025997,2]
[380924967,1755901988018,-28868.7134729,0.00025998,2]
[380924968,1755901988043,-13525.85393923,0.00026,30]
[380924969,1755901988070,-160.0,0.00026,30]
[380924970,1755901988095,-417.15472785,0.00026,30]
[380924971,1755901988124,-151.0,0.00026,7]
[380924972,1755901988147,-151.0,0.00026,7]
[380924973,1755901988171,-160.0,0.00026,30]
[380924974,1755901988197,-156.03,0.0002604,7]
[380924975,1755901988222,-156.08649661,0.0002604,7]
[380924976,1755901988246,-528.9579881,0.00026125,2]
[380924977,1755901988274,-191.34480338,0.0002616,2]
[380924978,1755901988298,-482.34691897,0.00026197,2]
[380924979,1755901988321,-500.0,0.00026323,2]
[380924980,1755901988345,-500.0,0.00026422,2]
[380924981,1755901988368,-8547.40929023,0.00026521,2]
[380924982,1755901988395,-168.0,0.00026542,2]
[380924983,1755901988419,-455.149396,0.00026676,2]
[380924984,1755901988445,-168.0,0.00026699,2]
[380924985,1755901988470,-500.0,0.00026759,2]
[380924986,1755901988494,-151.0,0.00026794,20]
[380924987,1755901988517,-191.0,0.00026794,20]
[380924988,1755901988544,-2831.17225154,0.00026806,6]
[380924989,1755901988569,-2903.37549208,0.00026868,2]
[380924990,1755901988596,-1401.20918519,0.00026918,2]
[380924991,1755901988622,-12692.97277622,0.0002692,2]
[380924992,1755901988648,-177.75684308,0.00026923,2]
[380924993,1755901988673,-151.0,0.00026923,2]
[380924994,1755901988696,-250.0,0.00026923,2]
[380924995,1755901988721,-250.0,0.00026923,2]
[380924996,1755901988745,-151.0,0.00026923,2]
[380924997,1755901988769,-261.50208631,0.00026923,2]
[380924998,1755901988793,-151.0,0.00026923,2]
[380924999,1755901988816,-151.0,0.00026923,2]
[380925000,1755901988839,-151.0,0.00026923,2]
[380925001,1755901988863,-151.0,0.00026923,2]
[380925002,1755901988887,-151.0,0.00026923,2]
[380925003,1755901988912,-151.0,0.00026923,2]
[380925004,1755901988936,-151.0,0.00026923,2]
[380925005,1755901988960,-151.0,0.00026923,2]
[380925006,1755901988983,-151.0,0.00026923,2]
[380925007,1755901989010,-151.0,0.00026923,2]
[380925008,1755901989036,-151.0,0.00026923,2]
[380925009,1755901989060,-151.0,0.00026923,2]
[380925010,1755901989086,-151.0,0.00026923,2]
[380925011,1755901989112,-300.0,0.00026923,2]
[380925012,1755901989136,-300.0,0.00026923,2]
[380925013,1755901989162,-300.0,0.00026923,2]
[380925014,1755901989187,-300.0,0.00026923,2]
[380925015,1755901989212,-500.0,0.00026923,2]
[380925016,1755901989237,-202.74159952,0.00026923,2]
[380925017,1755901989260,-500.0,0.00026923,2]
[380925018,1755901989284,-500.0,0.00026923,2]
[380925019,1755901989310,-500.0,0.00026923,2]
[380925020,1755901989338,-500.0,0.00026923,2]
[380925021,1755901989473,-500.0,0.00026923,2]
[380925022,1755901989498,-500.0,0.00026923,2]
[380925023,1755901989522,-500.0,0.00026923,2]
[380925024,1755901989548,-500.0,0.00026923,2]
[380925025,1755901989573,-500.0,0.00026923,2]
[380925026,1755901989597,-500.0,0.00026923,2]
[380925027,1755901989621,-500.0,0.00026923,2]
[380925028,1755901989644,-500.0,0.00026923,2]
[380925029,1755901989671,-4471.68537774,0.00026928,2]
[380925030,1755901989696,-376.07413479,0.00026966,2]
[380925031,1755901989719,-215.90555669,0.00026966,2]
[380925032,1755901989745,-951.13,0.00026991,10]
[380925033,1755901989768,-500.0,0.00026994,2]
[380925034,1755901989790,-174.8116116,0.00027,2]
[380925035,1755901989813,-10961.17405955,0.00027001,5]
[380925036,1755901989838,-151.0,0.00027017,2]
[380925037,1755901989862,-151.0,0.00027017,7]
[380925038,1755901989886,-152.124361,0.00027017,7]
[380925039,1755901989911,-500.0,0.00027017,2]
[380925040,1755901989939,-451.9416031,0.00027017,2]
[380925041,1755901989964,-500.0,0.00027017,2]
[380925042,1755901989991,-509.27723112,0.00027017,2]
[380925043,1755901990017,-151.0,0.00027018,7]
[380925044,1755901990044,-145502.978594,0.00027018,2]
[380925045,1755901990070,-7871.4452951,0.00027018,2]
[380925046,1755901990094,-455.25309459,0.00027028,2]
[380925047,1755901990119,-151.0,0.00027028,7]
[380925048,1755901990144,-151.0,0.00027028,7]
[380925049,1755901990168,-246.902958,0.00027028,7]
[380925050,1755901990192,-116402.382875,0.00027028,2]
[380925051,1755901990215,-12594.3124722,0.00027028,2]
[380925052,1755901990240,-151.0,0.00027038,7]
[380925053,1755901990264,-157.073149,0.00027038,7]
[380925054,1755901990288,-151.0,0.00027038,7]
[380925055,1755901990313,-370000.0,0.00027038,2]
[380925056,1755901990337,-501.07752612,0.00027073,2]
[380925057,1755901990362,-500.0,0.00027073,2]
[380925058,1755901990387,-500.0,0.00027073,2]
[380925059,1755901990411,-500.0,0.00027073,2]
[380925060,1755901990436,-1401.20918515,0.00027089,2]
[380925061,1755901990460,-1574.28905902,0.00027118,2]
[380925062,1755901990485,-28868.7134729,0.00027138,2]
[380925063,1755901990509,-151.0,0.00027138,7]
[380925064,1755901990534,-500.0,0.00027197,2]